[Event "CZE-ch U10 Open 2023"]
[Site "Teplice"]
[Date "2023.03.15"]
[Round "6.12"]
[White "Vorlik, Jachym"]
[Black "Broz, Pavel"]
[Result "1-0"]
[ECO "A40"]
[WhiteElo "1204"]
[BlackElo "1870"]
[Annotator "NA RC COMBH"]
[PlyCount "57"]
[EventDate "2023.03.09"]
[EventType "swiss"]
[EventCountry "CZE"]
[SourceTitle "playchess.com"]
[Source "ChessBase"]
[SourceQuality "1"]
[TimeControl "40/5400+30:1800+30"]

1. d4 {[%emt 0:00:06]} e6 {[%emt 0:01:16]} 2. Bf4 {[%emt 0:01:10]} d5 {[%emt 0:02:52]} 3. e3 {[%emt 0:00:54]} Ne7 {[%emt 0:00:21]} 4. Nf3 {[%emt 0:01:32]} Nbc6 {[%emt 0:04:39]} 5. Bd3 {[%emt 0:02:33]} g6 {[%emt 0:00:43]} 6. O-O {[%emt 0:01:14]} Bg7 {[%emt 0:03:25]} 7. c3 {[%emt 0:02:05]} f6 {[%emt 0:03:19]} 8. e4 {[%emt 0:03:51]} dxe4 {[%emt 0:02:03]} 9. Bxe4 {[%emt 0:00:53]} Bd7 {[%emt 0:01:25]} 10. h4 {[%emt 0:07:31]} f5 {[%emt 0:00:29]} 11. Bd3 {[%emt 0:02:58]} Nd5 {[%emt 0:00:39]} 12. Bg5 {[%emt 0:03:12]} Nce7 {[%emt 0:01:12]} 13. Bc4 {[%emt 0:04:04]} O-O {[%emt 0:01:47]} (13... h6 14. Bxe7 Qxe7 15. Bxd5 exd5 16. Re1 $16) (13... c6 $142) 14. Bxd5 {[%emt 0:01:17]} exd5 {[%emt 0:00:09]} 15. Re1 {[%emt 0:01:00]} Bf6 {[%emt 0:09:41]} 16. Qe2 {[%emt 0:06:23]} Bxg5 {[%emt 0:03:11]} 17. Nxg5 {[%emt 0:00:36]} Re8 {[%emt 0:01:52]} (17... Nc8 $142) 18. Nd2 {[%emt 0:01:48]} ({White should try} 18. Qe5 h6 19. Nf3) 18... f4 {[%emt 0:02:21]} 19. Ne6 {[%emt 0:03:20]} Qc8 {[%emt 0:01:55]} (19... Bxe6 {is a better defense.} 20. Qxe6+ Kg7) 20. Nxf4 {[%emt 0:05:16]} Nf5 {[%emt 0:04:39]} 21. Qf3 {[%emt 0:02:39]} c6 {[%emt 0:01:49]} 22. Rxe8+ {[%emt 0:02:14]} (22. h5 $18) 22... Qxe8 {[%emt 0:01:30]} 23. g3 {[%emt 0:02:04]} Nh6 {[%emt 0:01:21]} (23... Qe7 $16 24. h5 g5) 24. Nd3 {[%emt 0:02:10]} Bg4 {[%emt 0:00:30]} 25. Qf4 {[%emt 0:02:48]} Qe2 {[%emt 0:02:59]} 26. Re1 {[%emt 0:03:06]} Qxd3 {[%emt 0:02:51]} 27. Qxh6 {[%emt 0:00:43]} Rf8 {[%emt 0:00:13]} 28. Re7 {[%emt 0:00:28]} g5 {[%emt 0:01:24]} 29. Qg7# {[%emt 0:00:00]} 1-0

[Event "CZE-ch U10 Open 2023"]
[Site "Teplice"]
[Date "2023.03.16"]
[Round "7.1"]
[White "Kozusnik, Jan"]
[Black "Filindash, Nikita"]
[Result "0-1"]
[ECO "C11"]
[WhiteElo "1286"]
[BlackElo "2021"]
[Annotator "TA"]
[PlyCount "30"]
[EventDate "2023.03.09"]
[EventType "swiss"]
[EventCountry "CZE"]
[SourceTitle "playchess.com"]
[Source "ChessBase"]
[SourceQuality "1"]
[TimeControl "40/5400+30:1800+30"]

{[%evp 11,30,-25,-20,-24,-39,-50,0,0,0,-67,-20,-24,-18,-150,-176,-173,-169,-690,-455,-564,-441]} 1. e4 {[%emt 0:00:05]} e6 {[%emt 0:00:08]} 2. d4 {[%emt 0:00:06]} d5 {[%emt 0:00:01]} 3. Nc3 {[%emt 0:00:18]} Nf6 {[%emt 0:00:08]} 4. Bg5 {[%emt 0:00:21]} dxe4 {[%emt 0:00:14]} 5. Bxf6 {[%emt 0:00:35]} gxf6 {[%emt 0:00:07]} 6. Nxe4 {[%emt 0:00:10]} f5 {[%emt 0:01:29]} 7. Nc3 {[%emt 0:00:39] C13: French: Classical System: 4 Bg5 Be7, Alekhine-Chatard Attack.} Bg7 {[%emt 0:00:17]} 8. Nge2 {[%emt 0:01:07]} c6 {[%emt 0:04:02] [#]} (8... Nc6 $15) 9. Qd2 $146 {[%emt 0:02:02] The position is equal.} ({Predecessor:} 9. g3 O-O 10. Qd2 Nd7 11. O-O-O Nb6 12. Bg2 Nd5 13. h3 Qf6 14. f4 Rd8 15. g4 Nxc3 16. Qxc3 {1-0 Becker,A-Mueller,H Wien Trebitsch Memorial-15 1931 (11)}) 9... Nd7 {[%emt 0:04:01]} 10. f4 {[%emt 0:02:06]} (10. O-O-O $11) 10... Nb6 {[%emt 0:05:31]} (10... b5 $15) 11. O-O-O {[%emt 0:03:12]} Qd6 {[%emt 0:04:40] Threatens to win with ...Nc4.} 12. g3 {[%emt 0:02:32] [#]} (12. Ng1 $11 {remains equal.}) 12... Nc4 $1 $17 {[%emt 0:01:38]} 13. Qd3 {[%emt 0:06:58]} Qb4 {[%emt 0:00:19][%csl Gc4][%cal Rb4b2]} 14. Re1 $2 {[%emt 0:02:17]} (14. Na4) 14... Qxb2+ {[%emt 0:00:06]} 15. Kd1 {[%emt 0:00:21]} Qa1+ {[%emt 0:00:08] Weighted Error Value: White=0.77/Black=0.41} 0-1

[Event "CZE-ch U10 Open 2023"]
[Site "Teplice"]
[Date "2023.03.16"]
[Round "7.2"]
[White "Kolar, Edvard"]
[Black "Velim, Vojtech"]
[Result "1-0"]
[ECO "A45"]
[WhiteElo "1518"]
[BlackElo "1369"]
[Annotator "NA RC COMBH"]
[PlyCount "41"]
[EventDate "2023.03.09"]
[EventType "swiss"]
[EventCountry "CZE"]
[SourceTitle "playchess.com"]
[Source "ChessBase"]
[SourceQuality "1"]
[TimeControl "40/5400+30:1800+30"]

1. d4 {[%emt 0:00:02]} Nf6 {[%emt 0:00:09]} 2. e3 {[%emt 0:00:14]} e6 {[%emt 0:00:11]} 3. f4 {[%emt 0:00:06]} c5 {[%emt 0:00:23]} 4. Nf3 {[%emt 0:00:23]} Nc6 {[%emt 0:00:34]} 5. Bd3 {[%emt 0:01:42]} d5 {[%emt 0:00:30]} 6. c3 {[%emt 0:00:42]} c4 {[%emt 0:02:11]} 7. Bc2 {[%emt 0:00:16]} b5 {[%emt 0:00:45]} 8. Ne5 {[%emt 0:00:59]} Nxe5 {[%emt 0:02:40]} 9. fxe5 {[%emt 0:00:39]} Ne4 {[%emt 0:00:16]} 10. O-O {[%emt 0:04:17]} Bb7 {[%emt 0:02:27]} 11. Qf3 {[%emt 0:03:19]} Qc7 {[%emt 0:07:37]} 12. Nd2 {[%emt 0:02:25]} Nxd2 {[%emt 0:01:40]} 13. Bxd2 {[%emt 0:00:06]} a5 {[%emt 0:03:56]} 14. Rf2 {[%emt 0:03:34]} Bc6 {[%emt 0:00:31]} 15. Raf1 {[%emt 0:01:26]} Ra7 {[%emt 0:00:23]} 16. Qg4 {[%emt 0:19:10]} h5 {[%emt 0:05:57]} 17. Qg3 {[%emt 0:02:51]} Qb6 {[%emt 0:06:41]} 18. Rxf7 {[%emt 0:03:30]} Rxf7 {[%emt 0:05:35]} 19. Bg6 {[%emt 0:00:59]} Kd8 {[%emt 0:02:56]} 20. Bxf7 {[%emt 0:02:36]} Bd7 {[%emt 0:01:18]} 21. Qg5+ {[%emt 0:10:40]} 1-0

[Event "CZE-ch U10 Open 2023"]
[Site "Teplice"]
[Date "2023.03.16"]
[Round "7.3"]
[White "Lutskiy, Mikhail"]
[Black "Kroulik, Stepan"]
[Result "1-0"]
[ECO "B30"]
[WhiteElo "1150"]
[BlackElo "1228"]
[Annotator "NA RC COMBH"]
[PlyCount "65"]
[EventDate "2023.03.09"]
[EventType "swiss"]
[EventCountry "CZE"]
[SourceTitle "playchess.com"]
[Source "ChessBase"]
[SourceQuality "1"]
[TimeControl "40/5400+30:1800+30"]

1. e4 {[%emt 0:00:07]} c5 {[%emt 0:00:14]} 2. Nf3 {[%emt 0:00:10]} Nc6 {[%emt 0:00:05]} 3. Bb5 {[%emt 0:00:15]} d6 {[%emt 0:00:14]} 4. Bxc6+ {[%emt 0:00:22]} bxc6 {[%emt 0:00:07]} 5. O-O {[%emt 0:00:14]} Bg4 {[%emt 0:00:57]} 6. h3 {[%emt 0:00:20]} Bh5 {[%emt 0:00:11]} 7. d3 {[%emt 0:00:24]} e5 {[%emt 0:02:01]} 8. Be3 {[%emt 0:01:00]} Rb8 {[%emt 0:01:22]} 9. b3 {[%emt 0:00:48]} Nf6 {[%emt 0:02:02]} 10. Nbd2 {[%emt 0:01:01]} Be7 {[%emt 0:00:26]} 11. Qc1 {[%emt 0:01:19]} O-O {[%emt 0:01:16]} 12. Nh2 {[%emt 0:02:02]} h6 {[%emt 0:02:41]} 13. f4 {[%emt 0:00:16]} exf4 {[%emt 0:01:19]} 14. Bxf4 {[%emt 0:00:18]} Qd7 {[%emt 0:02:39]} 15. e5 {[%emt 0:01:33]} Nd5 {[%emt 0:02:39]} 16. Bg3 Bg5 17. Nhf3 {[%emt 0:08:53]} Be3+ {[%emt 0:19:37]} 18. Kh1 {[%emt 0:01:22]} Rbe8 {[%emt 0:04:20]} 19. exd6 {[%emt 0:01:42]} Nc3 {[%emt 0:01:54]} 20. Qb2 {[%emt 0:02:00]} Ne2 {[%emt 0:00:52]} 21. Bh2 {[%emt 0:00:55]} Bxf3 {[%emt 0:01:02]} 22. Nxf3 {[%emt 0:00:30]} f6 {[%emt 0:10:13]} 23. Rad1 {[%emt 0:11:06]} Bd4 {[%emt 0:05:31]} 24. Nxd4 {[%emt 0:01:18]} cxd4 {[%emt 0:00:28]} 25. Rde1 {[%emt 0:02:04]} Nc3 {[%emt 0:00:19]} 26. Qa3 {[%emt 0:01:00]} Rxe1 {[%emt 0:10:00]} 27. Rxe1 {[%emt 0:00:28]} Re8 {[%emt 0:02:30]} 28. Re7 {[%emt 0:03:00]} Rxe7 {[%emt 0:01:01]} 29. dxe7 {[%emt 0:00:12]} Nb5 {[%emt 0:01:06]} 30. Qc5 {[%emt 0:01:18]} Qe6 {[%emt 0:05:13]} 31. Qc4 {[%emt 0:00:48]} Qf7 {[%emt 0:04:28]} 32. e8=Q+ {[%emt 0:00:20]} Kh7 {[%emt 0:00:29]} 33. Qcxf7 {[%emt 0:00:47]} 1-0

[Event "CZE-ch U10 Open 2023"]
[Site "Teplice"]
[Date "2023.03.16"]
[Round "7.4"]
[White "Gernert, Tomas"]
[Black "Skoloud, Josef"]
[Result "0-1"]
[ECO "D02"]
[WhiteElo "1362"]
[BlackElo "1090"]
[Annotator "NA RC COMBH"]
[PlyCount "52"]
[EventDate "2023.03.09"]
[EventType "swiss"]
[EventCountry "CZE"]
[SourceTitle "playchess.com"]
[Source "ChessBase"]
[SourceQuality "1"]
[TimeControl "40/5400+30:1800+30"]

1. d4 {[%emt 0:00:03]} d5 {[%emt 0:00:02]} 2. Nf3 {[%emt 0:00:06]} c5 {[%emt 0:00:09]} 3. c3 {[%emt 0:00:21]} Nc6 {[%emt 0:00:16]} 4. e3 {[%emt 0:01:10]} Bg4 {[%emt 0:00:55]} 5. Bd3 {[%emt 0:00:26]} e6 {[%emt 0:00:43]} 6. O-O {[%emt 0:00:52]} Nf6 {[%emt 0:00:27]} 7. h3 Bh5 8. g4 {[%emt 0:03:21]} Bg6 {[%emt 0:00:58]} 9. Ne5 {[%emt 0:00:53]} Qc7 {[%emt 0:03:20]} 10. f4 {[%emt 0:01:54]} Bxd3 {[%emt 0:01:41]} 11. Qxd3 {[%emt 0:01:07]} Bd6 {[%emt 0:03:48]} 12. Nd2 {[%emt 0:01:34]} h6 {[%emt 0:06:06]} 13. c4 {[%emt 0:05:31]} g6 {[%emt 0:09:40]} 14. b3 {[%emt 0:07:21]} O-O-O {[%emt 0:09:01]} 15. g5 {[%emt 0:02:07]} hxg5 {[%emt 0:03:28]} 16. fxg5 {[%emt 0:00:07]} Bxe5 {[%emt 0:00:14]} 17. dxe5 {[%emt 0:09:19]} Qxe5 {[%emt 0:01:33]} 18. Rb1 {[%emt 0:05:03]} Qg3+ {[%emt 0:00:23]} 19. Kh1 {[%emt 0:03:53]} Qe5 20. Qe2 Rxh3+ 21. Kg1 Qg3+ 22. Qg2 Qxe3+ 23. Rf2 Qe1+ 24. Qf1 Qe3 25. Qg2 Rg3 26. Kh2 Rh8+ 0-1

[Event "CZE-ch U10 Open 2023"]
[Site "Teplice"]
[Date "2023.03.16"]
[Round "7.6"]
[White "Fadrny, Jachym"]
[Black "Kupka, Frantisek"]
[Result "1-0"]
[ECO "D09"]
[WhiteElo "1279"]
[BlackElo "1988"]
[Annotator "TA"]
[PlyCount "71"]
[EventDate "2023.03.09"]
[EventType "swiss"]
[EventCountry "CZE"]
[SourceTitle "playchess.com"]
[Source "ChessBase"]
[SourceQuality "1"]
[TimeControl "40/5400+30:1800+30"]

{[%evp 13,71,52,37,-14,-20,-12,27,-1,55,49,96,30,106,16,200,178,162,158,190,175,414,273,292,160,263,206,402,387,960,943,940,927,912,903,1080,1080,965,734,1418,1416,1370,1287,1800,1780,1697,1646,1462,1432,5918,5619,29998,29997,29997,29997,29998,29996,29998,29993,29993,29994]} 1. d4 {[%emt 0:00:03]} d5 {[%emt 0:00:06]} 2. c4 {[%emt 0:00:05]} e5 {[%emt 0:00:13]} 3. dxe5 {[%emt 0:00:13]} d4 {[%emt 0:00:10]} 4. Nf3 {[%emt 0:00:07]} Nc6 {[%emt 0:00:09]} 5. g3 {[%emt 0:01:38]} Be6 {[%emt 0:01:34]} 6. b3 {[%emt 0:01:49]} Qd7 {[%emt 0:02:03]} 7. Bg2 {[%emt 0:00:20]} O-O-O {[%emt 0:01:24] [#]} 8. Ng5 $146 {[%emt 0:03:06] D09: Albin Counter Gambit: Main line with 5 g3.} (8. O-O $1 $14) ({Predecessor:} 8. O-O Bh3 9. Bb2 Bxg2 10. Kxg2 Nge7 11. Na3 Nf5 12. Nc2 Bc5 13. a3 g5 14. b4 g4 15. Nfe1 Bf8 16. e4 Ng7 {½-½ Genand,T (1908)-Bellay,P (1815) Angers op 15th 2022 (2)}) 8... Nxe5 {[%emt 0:03:03]} 9. Nxe6 {[%emt 0:00:49]} fxe6 {[%emt 0:01:27]} 10. Bb2 {[%emt 0:03:13] White has an edge.} Bc5 {[%emt 0:01:51]} ({Better is} 10... h5 $11) 11. a3 {[%emt 0:03:03]} Bb6 {[%emt 0:07:58]} (11... h5 $14 {is more appropriate.}) 12. O-O {[%emt 0:06:10]} (12. Nd2 $16) 12... Ne7 {[%emt 0:02:14]} (12... h5 $11) 13. Qc2 {[%emt 0:03:07]} ({White should try} 13. Nd2 $16) 13... a6 $2 {[%emt 0:04:31] [#] Black cannot hold the game after this.} (13... d3 $1 $11 {and Black is okay.} 14. Qd1 dxe2 15. Qxe2 Nd3) 14. c5 $40 {[%emt 0:03:32][%mdl 128] White goes for the king.} Ba7 {[%emt 0:01:16]} 15. Rd1 {[%emt 0:00:53]} N5c6 {[%emt 0:02:05]} 16. b4 {[%emt 0:12:01]} b5 $2 {[%emt 0:02:13]} (16... h5 {might work better.} 17. Nd2 h4) 17. Bh3 {[%emt 0:06:54]} Qd5 {[%emt 0:02:31]} 18. e4 {[%emt 0:02:22]} (18. Nd2 $18) 18... d3 {[%emt 0:03:09]} (18... Qh5 $16 19. Bxe6+ Kb7) 19. Qd2 {[%emt 0:02:36]} ({Weaker is} 19. Qa4 Qh5 20. Qxa6+ Kb8 $16) 19... Qxe4 {[%emt 0:03:03] [#]} (19... Qh5) 20. Re1 $18 {[%emt 0:00:27]} ({Don't play} 20. Bxg7 Ne5 21. Bg2 (21. Bxe6+ Kb7 $18) 21... Qd4 22. Bxh8 Rxh8 $18) 20... Nd4 $2 {[%emt 0:06:22]} (20... Qf3 21. Rxe6 Kb8) 21. Rxe4 {[%emt 0:01:34]} Nf3+ {[%emt 0:00:53]} 22. Kf1 {[%emt 0:00:10]} Nxd2+ {[%emt 0:00:33]} 23. Nxd2 {[%emt 0:00:04]} Nf5 {[%emt 0:02:19]} 24. Rxe6 {[%emt 0:00:32]} Rhf8 {[%emt 0:02:09]} 25. Bxg7 {[%emt 0:02:56]} Rf7 {[%emt 0:01:52]} 26. Bf6 {[%emt 0:01:03]} Rd5 {[%emt 0:01:33]} 27. Re8+ {[%emt 0:01:28][%cal Be6e8,Be8d8,Bd8d5][%mdl 32]} Kd7 {[%emt 0:01:47]} 28. Rd8+ {[%emt 0:00:36]} Ke6 {[%emt 0:00:55]} 29. Re1+ {[%emt 0:00:17]} Kxf6 {[%emt 0:01:02]} 30. Rxd5 {[%emt 0:00:07]} Kg6 {[%emt 0:01:39]} 31. Re6+ {[%emt 0:00:09]} Kg5 {[%emt 0:01:28]} 32. f4+ {[%emt 0:00:48] White mates.} Kh5 {[%emt 0:00:41]} 33. g4+ {[%emt 0:00:12][%cal Bg3g4,Bg4f5,Bf5f6][%mdl 32]} Kh4 {[%emt 0:00:36]} 34. Rxf5 {[%emt 0:00:35]} Rxf5 {[%emt 0:01:24]} 35. gxf5 {[%emt 0:00:33][%cal Re6h6]} Kxh3 {[%emt 0:00:44]} 36. f6 {[%emt 0:00:08] Weighted Error Value: White=0.53/Black=0.72} 1-0

[Event "CZE-ch U10 Open 2023"]
[Site "Teplice"]
[Date "2023.03.16"]
[Round "7.8"]
[White "Koutecky, Vaclav"]
[Black "Vo, Daniel"]
[Result "0-1"]
[ECO "B50"]
[WhiteElo "2060"]
[BlackElo "1440"]
[Annotator "TA"]
[PlyCount "78"]
[EventDate "2023.03.09"]
[EventType "swiss"]
[EventCountry "CZE"]
[SourceTitle "playchess.com"]
[Source "ChessBase"]
[SourceQuality "1"]
[TimeControl "40/5400+30:1800+30"]

{[%evp 10,78,1,0,12,0,8,13,41,27,53,41,60,39,49,25,58,13,31,0,20,16,83,75,72,-63,-64,-412,-388,-532,-528,-517,-503,-528,-506,-500,-418,-550,-519,-542,-532,-526,-520,-637,-627,-616,-594,-611,-583,-571,-551,-561,-559,-699,-702,-696,-677,-710,-695,-849,-847,-1170,-1106,-1044,-880,-1106,-1089,-1089,-1025,-5436,-5436]} 1. e4 {[%emt 0:00:01]} c5 {[%emt 0:00:08]} 2. Nf3 {[%emt 0:00:06]} d6 {[%emt 0:00:07]} 3. c3 {[%emt 0:00:06]} Nf6 {[%emt 0:00:05]} 4. Be2 {[%emt 0:00:07]} g6 {[%emt 0:00:10]} 5. O-O {[%emt 0:00:48]} Bg7 {[%emt 0:00:15]} 6. Qc2 {[%emt 0:00:26]} O-O {[%emt 0:00:19] B50: Sicilian: 2...d6, Miscellaneous.} 7. d4 {[%emt 0:00:09]} cxd4 {[%emt 0:00:12]} 8. cxd4 {[%emt 0:00:10]} Bd7 {[%emt 0:00:26] The position is equal.} 9. Bf4 {[%emt 0:01:59] [#]} Na6 $146 {[%emt 0:00:37][%cal Bb8a6,Ba6b4,Bb4c6,Bc6a5,Ba5c4,Bc4b2][%mdl 32]} ({Predecessor:} 9... Nc6 10. Nc3 Rc8 11. Qd2 a6 12. Rfd1 b5 13. e5 Ne8 14. h3 Na5 15. Rac1 Bc6 {½-½ Velavaa,R (1458)-Shaurya,D (1448) OMA-chT Clubs 2022 (7.1)}) 10. Nc3 {[%emt 0:00:34]} Rc8 {[%emt 0:00:31]} 11. Qd3 {[%emt 0:02:01]} Nb4 {[%emt 0:00:58]} 12. Qd2 {[%emt 0:00:39]} Re8 {[%emt 0:00:47]} 13. a3 {[%emt 0:04:17]} Nc6 {[%emt 0:01:24]} 14. Rac1 {[%emt 0:00:53]} Na5 {[%emt 0:01:07]} 15. Qd1 {[%emt 0:03:37] Against Nb3} Qb6 {[%emt 0:01:12] [#]} (15... Bg4 $11 {remains equal.}) 16. b4 $1 $16 {[%emt 0:01:41]} Nc4 {[%emt 0:01:03]} 17. Na4 {[%emt 0:06:02]} (17. Qb3 $16 Na5 18. Qb1 (18. bxa5 $2 {loses.} Qxb3 19. Bd2 e5 $19)) 17... Qa6 $15 {[%emt 0:02:38] Black is more active.} 18. Nb2 {[%emt 0:02:03][%mdl 8192] White does not recover from this.} (18. Rxc4 $15 Rxc4 19. Nb2 {[%mdl 64] Pin}) 18... Nxb2 $19 {[%emt 0:00:36]} 19. Qd2 {[%emt 0:16:12]} Qxa3 20. Ra1 {[%emt 0:03:13]} Qc3 {[%emt 0:02:11]} 21. Qxc3 {[%emt 0:15:35]} Rxc3 {[%emt 0:01:32]} 22. Rxa7 {[%emt 0:04:20]} Rc7 {[%emt 0:01:27]} 23. Ba6 {[%emt 0:03:03]} Rec8 {[%emt 0:01:15] Black is clearly winning.} 24. Rxb7 {[%emt 0:01:22]} Rxb7 {[%emt 0:01:07]} 25. Bxb7 {[%emt 0:00:19]} Rb8 {[%emt 0:00:08]} 26. Bd5 {[%emt 0:01:34]} Nxd5 {[%emt 0:00:10]} 27. exd5 {[%emt 0:00:12]} Nd3 {[%emt 0:00:22]} 28. Bd2 {[%emt 0:05:43]} Bg4 {[%emt 0:02:00][%cal Og4f3]} 29. Rb1 {[%emt 0:01:21]} Bxf3 {[%emt 0:00:47]} 30. gxf3 {[%emt 0:00:10]} Bxd4 {[%emt 0:00:06]} 31. b5 {[%emt 0:01:06]} Bxf2+ {[%emt 0:01:05]} 32. Kf1 {[%emt 0:00:30]} Bb6 {[%emt 0:00:16]} 33. Bh6 {[%emt 0:01:54]} f6 {[%emt 0:00:36] [#] ...g5 is the strong threat.} 34. Ra1 {[%emt 0:01:34]} Bc5 {[%emt 0:00:35][%cal Og6g5] And now ...g5! would win.} 35. Kg2 g5 {[%emt 0:00:26] White must now prevent ...Kf7.} (35... Rxb5 $2 {gets mated.} 36. Ra8+) 36. h4 {[%emt 0:03:38]} Be3 {[%emt 0:00:24]} 37. Ra3 {[%emt 0:01:00]} Nf4+ {[%emt 0:00:14]} 38. Kf1 Bc5 {[%emt 0:00:24]} 39. hxg5 {[%emt 0:00:32]} Bxa3 {[%emt 0:00:11] Weighted Error Value: White=0.59/Black=0.16 (very precise)} 0-1

[Event "CZE-ch U10 Open 2023"]
[Site "Teplice"]
[Date "2023.03.16"]
[Round "7.10"]
[White "Zelenka, Tomas"]
[Black "Fadrny, Jonas"]
[Result "1-0"]
[ECO "C10"]
[WhiteElo "1272"]
[BlackElo "1247"]
[Annotator "NA RC COMBH"]
[PlyCount "53"]
[EventDate "2023.03.09"]
[EventType "swiss"]
[EventCountry "CZE"]
[SourceTitle "playchess.com"]
[Source "ChessBase"]
[SourceQuality "1"]
[TimeControl "40/5400+30:1800+30"]

1. e4 {[%emt 0:00:03]} e6 {[%emt 0:00:10]} 2. d4 {[%emt 0:00:07]} d5 {[%emt 0:00:15]} 3. Nd2 {[%emt 0:00:09]} dxe4 {[%emt 0:01:03]} 4. Nxe4 {[%emt 0:00:13]} Nd7 {[%emt 0:00:43]} 5. Nf3 {[%emt 0:00:14]} h6 {[%emt 0:01:23]} 6. Bd3 {[%emt 0:05:41]} Ngf6 {[%emt 0:00:26]} 7. Nxf6+ {[%emt 0:00:20]} Nxf6 {[%emt 0:00:53]} 8. O-O {[%emt 0:00:18]} Bd6 {[%emt 0:00:23]} 9. Re1 {[%emt 0:01:21]} O-O {[%emt 0:00:24]} 10. b3 {[%emt 0:00:57]} b6 {[%emt 0:00:25]} 11. Bb2 {[%emt 0:00:38]} Bb7 {[%emt 0:00:31]} 12. Qd2 {[%emt 0:05:12]} Bxf3 {[%emt 0:00:33]} 13. gxf3 {[%emt 0:00:11]} Nh5 {[%emt 0:03:29]} 14. Re4 {[%emt 0:04:15]} Re8 {[%emt 0:01:47]} 15. Rg4 {[%emt 0:00:39]} f5 {[%emt 0:00:52]} 16. Qxh6 {[%emt 0:08:32]} Re7 {[%emt 0:05:19]} 17. d5 {[%emt 0:05:05]} fxg4 {[%emt 0:01:14]} 18. Qh7+ {[%emt 0:00:28]} Kf8 {[%emt 0:04:21]} 19. Qh8+ {[%emt 0:03:17]} Kf7 {[%emt 0:00:18]} 20. Qxh5+ {[%emt 0:00:37]} Kg8 {[%emt 0:00:30]} 21. Qh7+ {[%emt 0:06:37]} Kf8 {[%emt 0:00:56]} 22. Bb5 {[%emt 0:00:58]} Bxh2+ {[%emt 0:02:32]} 23. Kf1 {[%emt 0:03:10]} e5 {[%emt 0:01:06]} 24. Qxh2 {[%emt 0:01:00]} Kg8 {[%emt 0:02:01]} 25. Bc4 {[%emt 0:00:51]} Qd6 {[%emt 0:00:52]} 26. Ba3 {[%emt 0:01:22]} c5 {[%emt 0:01:12]} 27. dxc6+ {[%emt 0:00:14]} 1-0